[Event "Titled Tuesday Blitz September 28 2021"]
[White "Silvestre, Christian"]
[Black "Gasanov, Zaur"]
[WhiteFideId "30956269"]
[BlackFideId "34125970"]
[WhiteElo "2494"]
[BlackElo "2099"]
[Result "0-1"]
[Round "11"]
[TimeControl "180+1"]
[Date "2021.09.28"]
[WhiteClock "0:00:32"]
[BlackClock "0:00:55"]

1. d4 {[%clk 0:03:00]}  Nf6 {[%clk 0:02:59]} 2. Bg5 {[%clk 0:02:58]}  d5 {[%clk 0:02:58]} 3. Bxf6 {[%clk 0:02:57]}  exf6 {[%clk 0:02:59]} 4. g3 {[%clk 0:02:57]}  c6 {[%clk 0:02:58]} 5. Bg2 {[%clk 0:02:57]}  Bd6 {[%clk 0:02:59]} 6. e3 {[%clk 0:02:57]}  f5 {[%clk 0:02:59]} 7. c4 {[%clk 0:02:57]}  dxc4 {[%clk 0:02:59]} 8. Qc2 {[%clk 0:02:52]}  Be6 {[%clk 0:02:57]} 9. Nd2 {[%clk 0:02:47]}  O-O {[%clk 0:02:50]} 10. Nxc4 {[%clk 0:02:45]}  Bc7 {[%clk 0:02:49]} 11. Ne2 {[%clk 0:02:43]}  Nd7 {[%clk 0:02:49]} 12. O-O {[%clk 0:02:40]}  Nf6 {[%clk 0:02:47]} 13. Rfd1 {[%clk 0:02:38]}  Ng4 {[%clk 0:02:46]} 14. h3 {[%clk 0:02:23]}  Nf6 {[%clk 0:02:45]} 15. b4 {[%clk 0:02:17]}  Nd5 {[%clk 0:02:38]} 16. Rab1 {[%clk 0:02:13]}  a6 {[%clk 0:02:35]} 17. a4 {[%clk 0:02:12]}  Rc8 {[%clk 0:02:30]} 18. Qb2 {[%clk 0:01:58]}  f4 {[%clk 0:02:20]} 19. gxf4 {[%clk 0:01:54]}  Nxf4 {[%clk 0:02:17]} 20. Nxf4 {[%clk 0:01:54]}  Bxc4 {[%clk 0:02:17]} 21. d5 {[%clk 0:01:49]}  Bxf4 {[%clk 0:02:11]} 22. dxc6 {[%clk 0:01:45]}  Qh4 {[%clk 0:01:45]} 23. cxb7 {[%clk 0:01:34]}  Rb8 {[%clk 0:01:26]} 24. exf4 {[%clk 0:01:33]}  Be6 {[%clk 0:01:26]} 25. Qe5 {[%clk 0:01:28]}  Bxh3 {[%clk 0:01:22]} 26. Bf3 {[%clk 0:01:09]}  Bg4 {[%clk 0:01:18]} 27. Bg2 {[%clk 0:01:09]}  Bxd1 {[%clk 0:01:17]} 28. Rxd1 {[%clk 0:01:10]}  Rxb7 {[%clk 0:01:11]} 29. Bxb7 {[%clk 0:00:50]}  Qg4+ {[%clk 0:01:10]} 30. Bg2 {[%clk 0:00:46]}  Qxd1+ {[%clk 0:01:09]} 31. Kh2 {[%clk 0:00:47]}  Qxa4 {[%clk 0:01:09]} 32. Qc5 {[%clk 0:00:40]}  Rb8 {[%clk 0:01:04]} 33. Bb7 {[%clk 0:00:32]}  Qb5 {[%clk 0:00:55]} 0-1


[Site "https://www.chess.com"]

[Event "Titled Tuesday Blitz September 28 2021"]
[White "Stoyanov, Tsvetan"]
[Black "Spitzl, Vinzent"]
[WhiteFideId "2917173"]
[BlackFideId "12901253"]
[WhiteElo "2191"]
[BlackElo "2160"]
[Result "1-0"]
[Round "11"]
[TimeControl "180+1"]
[Date "2021.09.28"]
[WhiteClock "0:02:34"]
[BlackClock "0:02:05"]

1. f4 {[%clk 0:03:00]}  f5 {[%clk 0:02:53]} 2. Nf3 {[%clk 0:03:00]}  Nf6 {[%clk 0:02:53]} 3. b3 {[%clk 0:03:01]}  g6 {[%clk 0:02:53]} 4. Bb2 {[%clk 0:03:01]}  Bg7 {[%clk 0:02:54]} 5. g3 {[%clk 0:03:01]}  O-O {[%clk 0:02:54]} 6. Bg2 {[%clk 0:03:02]}  Nc6 {[%clk 0:02:51]} 7. O-O {[%clk 0:03:01]}  b6 {[%clk 0:02:48]} 8. c4 {[%clk 0:03:01]}  Bb7 {[%clk 0:02:47]} 9. Nc3 {[%clk 0:02:58]}  d6 {[%clk 0:02:35]} 10. d3 {[%clk 0:02:53]}  Re8 {[%clk 0:02:32]} 11. e4 {[%clk 0:02:52]}  fxe4 {[%clk 0:02:29]} 12. dxe4 {[%clk 0:02:53]}  e5 {[%clk 0:02:29]} 13. f5 {[%clk 0:02:49]}  gxf5 {[%clk 0:02:24]} 14. exf5 {[%clk 0:02:50]}  e4 {[%clk 0:02:23]} 15. Ng5 {[%clk 0:02:48]}  Qe7 {[%clk 0:02:11]} 16. Nd5 {[%clk 0:02:35]}  Nxd5 {[%clk 0:02:05]} 17. Qxd5+ {[%clk 0:02:34]} 1-0


[Site "https://www.chess.com"]

[Event "Titled Tuesday Blitz September 28 2021"]
[White "Stribuk, Artiom"]
[Black "Siva Mahadevan"]
[WhiteFideId "13515659"]
[BlackFideId "25043153"]
[WhiteElo "2224"]
[BlackElo "2203"]
[Result "0-1"]
[Round "11"]
[TimeControl "180+1"]
[Date "2021.09.28"]
[WhiteClock "0:00:20"]
[BlackClock "0:02:25"]

1. d4 {[%clk 0:03:00]}  Nf6 {[%clk 0:03:00]} 2. c4 {[%clk 0:03:01]}  g6 {[%clk 0:03:00]} 3. Nf3 {[%clk 0:03:01]}  Bg7 {[%clk 0:03:00]} 4. g3 {[%clk 0:03:02]}  O-O {[%clk 0:03:01]} 5. Bg2 {[%clk 0:03:03]}  d6 {[%clk 0:03:02]} 6. O-O {[%clk 0:03:03]}  Nbd7 {[%clk 0:03:03]} 7. Nc3 {[%clk 0:03:04]}  e5 {[%clk 0:03:03]} 8. e4 {[%clk 0:03:04]}  c6 {[%clk 0:03:04]} 9. Re1 {[%clk 0:03:04]}  Qa5 {[%clk 0:03:03]} 10. h3 {[%clk 0:02:52]}  exd4 {[%clk 0:03:02]} 11. Nxd4 {[%clk 0:02:53]}  Ne5 {[%clk 0:03:02]} 12. Nb3 {[%clk 0:02:28]}  Qb4 {[%clk 0:02:57]} 13. c5 {[%clk 0:01:57]}  dxc5 {[%clk 0:02:40]} 14. a3 {[%clk 0:01:57]}  Qb6 {[%clk 0:02:38]} 15. Be3 {[%clk 0:01:53]}  Rd8 {[%clk 0:02:37]} 16. Qc2 {[%clk 0:01:45]}  Nd3 {[%clk 0:02:34]} 17. Red1 {[%clk 0:01:34]}  Be6 {[%clk 0:02:34]} 18. Rxd3 {[%clk 0:00:51]}  Rxd3 {[%clk 0:02:32]} 19. Qxd3 {[%clk 0:00:50]}  Qxb3 {[%clk 0:02:31]} 20. Qd2 {[%clk 0:00:39]}  Nd7 {[%clk 0:02:30]} 21. f4 {[%clk 0:00:36]}  Nb6 {[%clk 0:02:29]} 22. Bf1 {[%clk 0:00:32]}  Nc4 {[%clk 0:02:25]} 23. Bxc4 {[%clk 0:00:32]}  Qxc4 {[%clk 0:02:26]} 24. Kh2 {[%clk 0:00:24]}  Bf6 {[%clk 0:02:26]} 25. Rf1 {[%clk 0:00:20]}  Qxf1 {[%clk 0:02:25]} 0-1


[Site "https://www.chess.com"]

[Event "Titled Tuesday Blitz September 28 2021"]
[White "Szente Varga, Fruzsina"]
[Black "Baskin, Robert"]
[WhiteFideId "712264"]
[BlackFideId "24662402"]
[WhiteElo "2106"]
[BlackElo "2521"]
[Result "0-1"]
[Round "11"]
[TimeControl "180+1"]
[Date "2021.09.28"]
[WhiteClock "0:00:03"]
[BlackClock "0:00:43"]

1. e4 {[%clk 0:03:00]}  d5 {[%clk 0:03:00]} 2. exd5 {[%clk 0:03:00]}  Qxd5 {[%clk 0:03:00]} 3. Nc3 {[%clk 0:03:01]}  Qa5 {[%clk 0:03:00]} 4. d4 {[%clk 0:03:01]}  Nf6 {[%clk 0:03:00]} 5. Bc4 {[%clk 0:03:00]}  Bf5 {[%clk 0:03:00]} 6. Nf3 {[%clk 0:03:00]}  c6 {[%clk 0:02:58]} 7. Bd2 {[%clk 0:03:00]}  e6 {[%clk 0:02:58]} 8. Qe2 {[%clk 0:03:00]}  Nbd7 {[%clk 0:02:56]} 9. d5 {[%clk 0:02:45]}  cxd5 {[%clk 0:02:49]} 10. Nxd5 {[%clk 0:02:45]}  Qd8 {[%clk 0:02:36]} 11. Bc3 {[%clk 0:02:27]}  Nxd5 {[%clk 0:02:34]} 12. Bxd5 {[%clk 0:02:28]}  Qc7 {[%clk 0:02:29]} 13. Nh4 {[%clk 0:02:12]}  O-O-O {[%clk 0:02:17]} 14. Nxf5 {[%clk 0:02:08]}  exd5 {[%clk 0:02:17]} 15. O-O-O {[%clk 0:01:55]}  Bc5 {[%clk 0:02:11]} 16. Rxd5 {[%clk 0:01:35]}  Rhe8 {[%clk 0:02:10]} 17. Qg4 {[%clk 0:01:09]}  g6 {[%clk 0:02:06]} 18. Nd4 {[%clk 0:00:56]}  f5 {[%clk 0:02:03]} 19. Qh4 {[%clk 0:00:46]}  Nf8 {[%clk 0:01:32]} 20. Rxd8+ {[%clk 0:00:38]}  Rxd8 {[%clk 0:01:33]} 21. Rd1 {[%clk 0:00:34]}  Qd7 {[%clk 0:01:31]} 22. Rd2 {[%clk 0:00:24]}  Re8 {[%clk 0:01:32]} 23. Rd1 {[%clk 0:00:19]}  Qf7 {[%clk 0:01:24]} 24. Qg3 {[%clk 0:00:17]}  Rd8 {[%clk 0:01:20]} 25. Kb1 {[%clk 0:00:16]}  Ne6 {[%clk 0:01:14]} 26. Qe3 {[%clk 0:00:14]}  Qd7 {[%clk 0:01:09]} 27. Rd3 {[%clk 0:00:09]}  Nxd4 {[%clk 0:01:03]} 28. Bxd4 {[%clk 0:00:10]}  Bxd4 {[%clk 0:01:03]} 29. Qf4 {[%clk 0:00:10]}  Qc7 {[%clk 0:01:01]} 30. Qh4 {[%clk 0:00:07]}  Bb6 {[%clk 0:00:58]} 31. a3 {[%clk 0:00:05]}  Rxd3 {[%clk 0:00:58]} 32. cxd3 {[%clk 0:00:06]}  a6 {[%clk 0:00:53]} 33. Qf6 {[%clk 0:00:06]}  Kb8 {[%clk 0:00:52]} 34. Qh8+ {[%clk 0:00:06]}  Ka7 {[%clk 0:00:51]} 35. d4 {[%clk 0:00:07]}  Qd7 {[%clk 0:00:51]} 36. Qg8 {[%clk 0:00:06]}  Qxd4 {[%clk 0:00:50]} 37. Qxh7 {[%clk 0:00:07]}  Bd8 {[%clk 0:00:45]} 38. Qxg6 {[%clk 0:00:07]}  Bf6 {[%clk 0:00:46]} 39. Kc1 {[%clk 0:00:05]}  Qxb2+ {[%clk 0:00:45]} 40. Kd1 {[%clk 0:00:05]}  Bc3 {[%clk 0:00:45]} 41. Qd6 {[%clk 0:00:04]}  Qxf2 {[%clk 0:00:44]} 42. Qc5+ {[%clk 0:00:03]}  Qxc5 {[%clk 0:00:43]} 0-1


[Site "https://www.chess.com"]

[Event "Titled Tuesday Blitz September 28 2021"]
[White "Thejkumar, M. S."]
[Black "Buscar, Michael"]
[WhiteFideId "5009154"]
[BlackFideId "2603616"]
[WhiteElo "2312"]
[BlackElo "2010"]
[Result "1-0"]
[Round "11"]
[TimeControl "180+1"]
[Date "2021.09.28"]
[WhiteClock "0:01:04"]
[BlackClock "0:00:35"]

1. d4 {[%clk 0:03:00]}  Nf6 {[%clk 0:02:50]} 2. c4 {[%clk 0:03:00]}  e6 {[%clk 0:02:50]} 3. Nf3 {[%clk 0:02:58]}  c5 {[%clk 0:02:50]} 4. d5 {[%clk 0:02:58]}  exd5 {[%clk 0:02:51]} 5. cxd5 {[%clk 0:02:58]}  d6 {[%clk 0:02:51]} 6. Nc3 {[%clk 0:02:58]}  g6 {[%clk 0:02:51]} 7. Nd2 {[%clk 0:02:58]}  Bg7 {[%clk 0:02:48]} 8. e4 {[%clk 0:02:58]}  O-O {[%clk 0:02:48]} 9. Be2 {[%clk 0:02:58]}  Na6 {[%clk 0:02:47]} 10. O-O {[%clk 0:02:57]}  Nb4 {[%clk 0:02:40]} 11. a3 {[%clk 0:02:56]}  Na6 {[%clk 0:02:39]} 12. Re1 {[%clk 0:02:53]}  Re8 {[%clk 0:02:38]} 13. h3 {[%clk 0:02:48]}  Nc7 {[%clk 0:02:36]} 14. a4 {[%clk 0:02:47]}  b6 {[%clk 0:02:31]} 15. Bf1 {[%clk 0:02:44]}  Ba6 {[%clk 0:02:31]} 16. Bxa6 {[%clk 0:02:35]}  Nxa6 {[%clk 0:02:30]} 17. Nc4 {[%clk 0:02:35]}  Nb4 {[%clk 0:02:26]} 18. Bf4 {[%clk 0:02:34]}  Bf8 {[%clk 0:02:21]} 19. Qd2 {[%clk 0:02:30]}  Nh5 {[%clk 0:02:10]} 20. Bg5 {[%clk 0:02:29]}  Qd7 {[%clk 0:02:08]} 21. g4 {[%clk 0:02:27]}  Ng7 {[%clk 0:02:06]} 22. Bf6 {[%clk 0:02:16]}  Be7 {[%clk 0:01:57]} 23. e5 {[%clk 0:02:11]}  Bxf6 {[%clk 0:01:51]} 24. exf6 {[%clk 0:02:10]}  Rxe1+ {[%clk 0:01:51]} 25. Rxe1 {[%clk 0:02:08]}  Ne8 {[%clk 0:01:51]} 26. Re7 {[%clk 0:02:06]}  Qd8 {[%clk 0:01:49]} 27. g5 {[%clk 0:01:53]}  h5 {[%clk 0:01:36]} 28. Ne4 {[%clk 0:01:34]}  a6 {[%clk 0:01:25]} 29. Ng3 {[%clk 0:01:28]}  b5 {[%clk 0:01:20]} 30. Ne3 {[%clk 0:01:26]}  bxa4 {[%clk 0:01:11]} 31. Nef5 {[%clk 0:01:24]}  gxf5 {[%clk 0:01:03]} 32. Nxf5 {[%clk 0:01:22]}  Rc8 {[%clk 0:00:49]} 33. Nh6+ {[%clk 0:01:07]}  Kh7 {[%clk 0:00:43]} 34. Qf4 {[%clk 0:01:06]}  Rc7 {[%clk 0:00:37]} 35. Qf5+ {[%clk 0:01:05]}  Kh8 {[%clk 0:00:35]} 36. Nxf7+ {[%clk 0:01:04]} 1-0


[Site "https://www.chess.com"]

[Event "Titled Tuesday Blitz September 28 2021"]
[White "Vivas Zamora, Fabian Ernesto"]
[Black "Skatchkov, Valery"]
[WhiteFideId "3902480"]
[BlackFideId "24195812"]
[WhiteElo "1966"]
[BlackElo "2195"]
[Result "0-1"]
[Round "11"]
[TimeControl "180+1"]
[Date "2021.09.28"]
[WhiteClock "0:00:03"]
[BlackClock "0:00:58"]

1. c4 {[%clk 0:02:52]}  c5 {[%clk 0:02:56]} 2. Nf3 {[%clk 0:02:51]}  Nc6 {[%clk 0:02:56]} 3. d4 {[%clk 0:02:51]}  cxd4 {[%clk 0:02:55]} 4. Nxd4 {[%clk 0:02:52]}  Nf6 {[%clk 0:02:52]} 5. Nc3 {[%clk 0:02:52]}  g6 {[%clk 0:02:50]} 6. Nc2 {[%clk 0:02:45]}  Bg7 {[%clk 0:02:49]} 7. e4 {[%clk 0:02:45]}  O-O {[%clk 0:02:50]} 8. Be2 {[%clk 0:02:45]}  d6 {[%clk 0:02:51]} 9. O-O {[%clk 0:02:44]}  Be6 {[%clk 0:02:52]} 10. Be3 {[%clk 0:02:37]}  Rc8 {[%clk 0:02:52]} 11. Rc1 {[%clk 0:02:33]}  a6 {[%clk 0:02:53]} 12. Qd2 {[%clk 0:02:20]}  Ne5 {[%clk 0:02:51]} 13. b3 {[%clk 0:02:14]}  Neg4 {[%clk 0:02:28]} 14. Bd4 {[%clk 0:02:05]}  Qa5 {[%clk 0:02:17]} 15. f4 {[%clk 0:01:43]}  h5 {[%clk 0:01:23]} 16. h3 {[%clk 0:00:53]}  Nh6 {[%clk 0:01:22]} 17. Bxf6 {[%clk 0:00:52]}  Bxf6 {[%clk 0:01:20]} 18. Ne3 {[%clk 0:00:35]}  b5 {[%clk 0:01:18]} 19. f5 {[%clk 0:00:28]}  Bd7 {[%clk 0:01:05]} 20. Ned5 {[%clk 0:00:25]}  Kg7 {[%clk 0:01:05]} 21. Nxf6 {[%clk 0:00:21]}  exf6 {[%clk 0:01:06]} 22. Qxd6 {[%clk 0:00:20]}  Rcd8 {[%clk 0:01:04]} 23. Nd5 {[%clk 0:00:16]}  Be6 {[%clk 0:01:01]} 24. Qe7 {[%clk 0:00:11]}  Bxd5 {[%clk 0:01:00]} 25. exd5 {[%clk 0:00:07]}  Rfe8 {[%clk 0:00:59]} 26. Qa7 {[%clk 0:00:02]}  Rxe2 {[%clk 0:00:58]} 27. fxg6 {[%clk 0:00:03]}  Qd2 {[%clk 0:00:58]} 0-1


[Site "https://www.chess.com"]

[Event "Titled Tuesday Blitz September 28 2021"]
[White "Vogel, Roven"]
[Black "Nazaretyan, Tigran"]
[WhiteFideId "12908088"]
[BlackFideId "24162345"]
[WhiteElo "2516"]
[BlackElo "2212"]
[Result "1-0"]
[Round "11"]
[TimeControl "180+1"]
[Date "2021.09.28"]
[WhiteClock "0:00:11"]
[BlackClock "0:00:17"]

1. Nf3 {[%clk 0:03:00]}  Nf6 {[%clk 0:02:54]} 2. c4 {[%clk 0:03:00]}  g6 {[%clk 0:02:53]} 3. Nc3 {[%clk 0:03:00]}  Bg7 {[%clk 0:02:53]} 4. e4 {[%clk 0:03:00]}  O-O {[%clk 0:02:54]} 5. d3 {[%clk 0:03:00]}  d6 {[%clk 0:02:54]} 6. Be2 {[%clk 0:02:58]}  c5 {[%clk 0:02:54]} 7. d4 {[%clk 0:02:53]}  cxd4 {[%clk 0:02:52]} 8. Nxd4 {[%clk 0:02:54]}  Nc6 {[%clk 0:02:53]} 9. Be3 {[%clk 0:02:53]}  Bd7 {[%clk 0:02:43]} 10. O-O {[%clk 0:02:49]}  Nxd4 {[%clk 0:02:43]} 11. Bxd4 {[%clk 0:02:49]}  Bc6 {[%clk 0:02:44]} 12. Bd3 {[%clk 0:02:48]}  Nd7 {[%clk 0:02:43]} 13. Bxg7 {[%clk 0:02:47]}  Kxg7 {[%clk 0:02:43]} 14. Qd2 {[%clk 0:02:35]}  Nc5 {[%clk 0:02:42]} 15. Bc2 {[%clk 0:02:35]}  a5 {[%clk 0:02:41]} 16. Nd5 {[%clk 0:02:33]}  f6 {[%clk 0:02:28]} 17. Rfe1 {[%clk 0:02:28]}  a4 {[%clk 0:02:25]} 18. Re3 {[%clk 0:02:27]}  Rf7 {[%clk 0:02:23]} 19. Rb1 {[%clk 0:02:21]}  e6 {[%clk 0:02:22]} 20. Nc3 {[%clk 0:02:15]}  g5 {[%clk 0:02:13]} 21. b4 {[%clk 0:02:14]}  axb3 {[%clk 0:02:12]} 22. axb3 {[%clk 0:02:15]}  e5 {[%clk 0:01:55]} 23. b4 {[%clk 0:02:09]}  Ne6 {[%clk 0:01:55]} 24. b5 {[%clk 0:02:08]}  Be8 {[%clk 0:01:55]} 25. Bd1 {[%clk 0:02:02]}  Nd4 {[%clk 0:01:51]} 26. Ne2 {[%clk 0:02:01]}  Ne6 {[%clk 0:01:49]} 27. Ng3 {[%clk 0:02:01]}  Rd7 {[%clk 0:01:46]} 28. Bg4 {[%clk 0:01:57]}  Bf7 {[%clk 0:01:41]} 29. Rd3 {[%clk 0:01:56]}  Ra4 {[%clk 0:01:38]} 30. Nf5+ {[%clk 0:01:54]}  Kf8 {[%clk 0:01:32]} 31. Rd1 {[%clk 0:01:07]}  h5 {[%clk 0:01:30]} 32. Be2 {[%clk 0:01:02]}  Rxc4 {[%clk 0:01:23]} 33. Rxd6 {[%clk 0:01:01]}  Rxd6 {[%clk 0:01:23]} 34. Qxd6+ {[%clk 0:00:54]}  Qxd6 {[%clk 0:01:22]} 35. Nxd6 {[%clk 0:00:54]}  Rc2 {[%clk 0:01:14]} 36. Bd3 {[%clk 0:00:51]}  Rc7 {[%clk 0:01:12]} 37. b6 {[%clk 0:00:49]}  Rc6 {[%clk 0:01:11]} 38. Nxf7 {[%clk 0:00:26]}  Kxf7 {[%clk 0:01:10]} 39. Rb1 {[%clk 0:00:26]}  Nd4 {[%clk 0:01:02]} 40. Ba6 {[%clk 0:00:22]}  Ne2+ {[%clk 0:00:30]} 41. Kf1 {[%clk 0:00:21]}  Nc3 {[%clk 0:00:30]} 42. Bxb7 {[%clk 0:00:20]}  Rd6 {[%clk 0:00:30]} 43. Bd5+ {[%clk 0:00:20]}  Nxd5 {[%clk 0:00:22]} 44. exd5 {[%clk 0:00:19]}  Rd8 {[%clk 0:00:22]} 45. b7 {[%clk 0:00:19]}  Rb8 {[%clk 0:00:22]} 46. Rb6 {[%clk 0:00:18]}  Ke7 {[%clk 0:00:21]} 47. Ke2 {[%clk 0:00:18]}  f5 {[%clk 0:00:22]} 48. Kd3 {[%clk 0:00:17]}  Kd7 {[%clk 0:00:22]} 49. d6 {[%clk 0:00:16]}  h4 {[%clk 0:00:20]} 50. h3 {[%clk 0:00:14]}  e4+ {[%clk 0:00:19]} 51. Kd4 {[%clk 0:00:14]}  Ke6 {[%clk 0:00:20]} 52. Kc5 {[%clk 0:00:13]}  f4 {[%clk 0:00:19]} 53. Kc6 {[%clk 0:00:13]}  f3 {[%clk 0:00:19]} 54. gxf3 {[%clk 0:00:12]}  exf3 {[%clk 0:00:20]} 55. Kc7 {[%clk 0:00:12]}  Rh8 {[%clk 0:00:16]} 56. b8=Q {[%clk 0:00:12]}  Rxb8 {[%clk 0:00:16]} 57. Rxb8 {[%clk 0:00:11]}  g4 {[%clk 0:00:17]} 58. hxg4 {[%clk 0:00:11]}  h3 {[%clk 0:00:17]} 59. Rh8 {[%clk 0:00:11]}  h2 {[%clk 0:00:17]} 60. Rxh2 {[%clk 0:00:11]} 1-0


[Site "https://www.chess.com"]

[Event "Titled Tuesday Blitz September 28 2021"]
[White "Vokhidov, Shamsiddin"]
[Black "Kovalchuk94"]
[WhiteFideId "14204223"]
[WhiteElo "2616"]
[BlackElo "2682"]
[Result "1-0"]
[Round "11"]
[TimeControl "180+1"]
[Date "2021.09.28"]
[WhiteClock "0:01:23"]
[BlackClock "0:00:10"]

1. e4 {[%clk 0:03:00]}  e5 {[%clk 0:02:59]} 2. Nf3 {[%clk 0:03:00]}  Nf6 {[%clk 0:02:59]} 3. d4 {[%clk 0:02:59]}  Nxe4 {[%clk 0:02:59]} 4. dxe5 {[%clk 0:02:59]}  d5 {[%clk 0:03:00]} 5. Nbd2 {[%clk 0:02:58]}  Nc6 {[%clk 0:02:44]} 6. c3 {[%clk 0:02:56]}  Bc5 {[%clk 0:02:36]} 7. Nxe4 {[%clk 0:02:52]}  dxe4 {[%clk 0:02:37]} 8. Qxd8+ {[%clk 0:02:52]}  Nxd8 {[%clk 0:02:34]} 9. Ng5 {[%clk 0:02:52]}  Bf5 {[%clk 0:02:34]} 10. g4 {[%clk 0:02:43]}  Bxg4 {[%clk 0:02:34]} 11. Bg2 {[%clk 0:02:43]}  Ne6 {[%clk 0:02:12]} 12. Nxe4 {[%clk 0:02:41]}  Be7 {[%clk 0:02:12]} 13. Be3 {[%clk 0:02:37]}  O-O-O {[%clk 0:02:11]} 14. h3 {[%clk 0:02:33]}  Bh5 {[%clk 0:02:04]} 15. O-O {[%clk 0:02:30]}  g5 {[%clk 0:01:35]} 16. Nf6 {[%clk 0:02:26]}  Bxf6 {[%clk 0:01:33]} 17. exf6 {[%clk 0:02:27]}  Nf4 {[%clk 0:01:28]} 18. Rfe1 {[%clk 0:02:17]}  Nxg2 {[%clk 0:01:11]} 19. Kxg2 {[%clk 0:02:18]}  h6 {[%clk 0:01:12]} 20. Bd4 {[%clk 0:02:13]}  Rhe8 {[%clk 0:01:11]} 21. Re7 {[%clk 0:02:11]}  Bg6 {[%clk 0:01:02]} 22. Rae1 {[%clk 0:02:05]}  Rg8 {[%clk 0:00:49]} 23. Kg3 {[%clk 0:02:04]}  b6 {[%clk 0:00:49]} 24. a4 {[%clk 0:01:57]}  Rd5 {[%clk 0:00:46]} 25. R1e5 {[%clk 0:01:55]}  Rgd8 {[%clk 0:00:44]} 26. Re3 {[%clk 0:01:34]}  R5d7 {[%clk 0:00:28]} 27. b4 {[%clk 0:01:32]}  Bf5 {[%clk 0:00:24]} 28. R3e5 {[%clk 0:01:28]}  Bg6 {[%clk 0:00:23]} 29. f4 {[%clk 0:01:26]}  gxf4+ {[%clk 0:00:23]} 30. Kxf4 {[%clk 0:01:27]}  Rxe7 {[%clk 0:00:18]} 31. fxe7 {[%clk 0:01:27]}  Re8 {[%clk 0:00:18]} 32. Re2 {[%clk 0:01:28]}  Kd7 {[%clk 0:00:18]} 33. Bf6 {[%clk 0:01:27]}  c5 {[%clk 0:00:16]} 34. Rd2+ {[%clk 0:01:22]}  Ke6 {[%clk 0:00:14]} 35. Rd8 {[%clk 0:01:23]}  Rxe7 {[%clk 0:00:09]} 36. Bxe7 {[%clk 0:01:22]}  Kxe7 {[%clk 0:00:10]} 37. Ra8 {[%clk 0:01:23]} 1-0


[Site "https://www.chess.com"]